Workbook

Sheet Blatt 1
A1: Anlage: | D1: Berechnung der Umsatzerlöse aus bodengebundener Produktion
D2: zum Antrag auf Gewährung von Zuwendungen zur Förderung der Diversifzierung
A5: Antragstellendes Unternehmen (Name, Vorname, ggf. Unternehmensbezeichnung)
C7: Der Unternehmer hat, außer der Bewirtschaftung des antragstellenden landwirtschaftlichen Unternehmens, keine weiteren Erlöse aus gewerblichen Nebenbetriebe, Gewerbebetrieb und/oder selbständiger Tätigkeit.1
R10: Unternehmernummer Antragsteller | AB10: FALSE
AB11: FALSE
G14: (Name, Vorname)
H16: mit | K16: % Anteil am antragstellendes Unternehmen
A18: Der genannte antragstellende Einzelunternehmer / Gesellschafter hat folgende Umsatzerlöse aus dem antragstellenden Unternehmen: | T18: Wirtschaftsjahr (anteilig) | AC18: Wirtschaftsjahr (100%) | AE18: =IF(AND(AB10=TRUE,AB11=TRUE),"bei Personenidentität Blatt 1 und Blatt 4 ausfüllen","") -> 
T19: EUR | AC19: =T19 -> EUR | AE19: Anteil am landwirtschaftlichen Unternehmen in %
T20: Vorjahr | X20: akt. Jahr | AC20: =T20 -> Vorjahr | AD20: =X20 -> akt. Jahr | AE20: Vorjahr | AF20: akt. Jahr
T21: =AC21 -> 0 | X21: =AD21 -> 0
A22: 1. | B22: Umsatzerlöse im Rahmen der einkommensteuerrechtlichen Einkunftsermittlung aus Land- und Forstwirtschaft
A24: 1.1 | B24: Umsatzerlöse aus pflanzlichen oder tierischen Erzeugnissen, die durch Bodenbewirtschaftung oder durch mit Bodenbewirtschaftung verbundene Tierhaltung gemäß Bewertungsgesetz gewonnen werden inkl. Bestandsveränderung
T27: =ROUND((AC27*$AE$21/100),0) -> 0 | X27: =ROUND((AD27*$AF$21/100),0) -> 0
A29: 1.2 | B29: Umsatzerlöse aus Direktvermarktung land- und forstwirtschaftlicher Erzeugnisse, sonstigen Bereichen (Urlaub auf dem Bauerhof, außerbetrieblicher Maschineneinsatz)2
T30: =ROUND((AC30*$AE$21/100),0) -> 0 | X30: =ROUND((AD30*$AF$21/100),0) -> 0
A32: 1.3 | B32: Zulagen und Zuschüsse (BMELV-Code 2449, etc.): | T32: =ROUND((AC32*$AE$21/100),0) -> 0 | X32: =ROUND((AD32*$AF$21/100),0) -> 0
B34: Summe der Nr. 1 (= Summe 1) | T34: =IF(ISERROR(T27+T30+T32),0,(T27+T30+T32)) -> 0 | W34: =SUM(W27+#REF!+W32) ->  | X34: =IF(ISERROR(X27+X30+X32),0,(X27+X30+X32)) -> 0 | AA34: =SUM(AA27+#REF!+AA32) ->  | AC34: =IF(ISERROR(AC27+AC30+AC32),0,(AC27+AC30+AC32)) -> 0 | AD34: =IF(ISERROR(AD27+AD30+AD32),0,(AD27+AD30+AD32)) -> 0
A36: 2. | B36: Umsatzerlöse im Rahmen der einkommensteuerrechtlichen Einkunfts-ermittlung aus Gewerbebetrieb und aus Land- und Forstwirtschaft ohne eigene Bodenbewirtschaftung
A39: 2.1 | B39: gewerbliche Umsatzerlöse im landwirtschaftl. Betrieb aus Handel, Dienst-leistungen, Nebenbetriebe (z.B. Hofladen) (BMELV-Code 2337, etc.):
T41: =ROUND((AC41*$AE$21/100),0) -> 0 | X41: =ROUND((AD41*$AF$21/100),0) -> 0
A43: 2.2 | B43: Pacht- und Mieterträge des antragstellenden Unternehmens (BMELV-Code 2325 + 2326, etc.)
T44: =ROUND((AC44*$AE$21/100),0) -> 0 | X44: =ROUND((AD44*$AF$21/100),0) -> 0
A46: 2.3 | B46: Umsatzerlöse aus folgenden beteiligten Gewerbebetrieb (z.B. Bauernhofcafe, Ferienwohnungen, Pferdepension, Photovoltaik, Biogas, Maschineneinsatz): | AE46: =IF(AE50>100,"Fehler!","") ->  | AF46: =IF(AF50>100,"Fehler!","") -> 
AE47: Anteil der Beteiligung in %
A48: a | AE48: =T20 -> Vorjahr | AF48: =X20 -> akt. Jahr | AG48: =IF(AND(AB10=TRUE,AB11=TRUE),"bei Personenidentität 2.3a nur auf Blatt 4 ausfüllen","") -> 
A50: b | T50: =ROUND((AC50*AE50/100),0) -> 0 | X50: =ROUND((AD50*AF50/100),0) -> 0 | AG50: =IF(AND(AB10=TRUE,AB11=TRUE),"bei Personenidentität 2.3b nur auf Blatt 1 ausfüllen","") -> 
A52: 2.4 | B52: Umsatzerlöse aus selbständiger Arbeit (z.B. freiberufliche Tätigkeiten wie Referententätigkeit)
T53: =ROUND((AC53),0) -> 0 | X53: =ROUND((AD53),0) -> 0 | AG53: =IF(AND(AB10=TRUE,AB11=TRUE),"bei Personenidentität 2.4 nur auf Blatt 1 ausfüllen","") -> 
B55: Summe der Nr. 2 (= Summe 2) | T55: =IF(ISERROR(T41+T44+T48+T50+T53),0,(T41+T44+T48+T50+T53)) -> 0 | W55: =SUM(W48+#REF!+W53) ->  | X55: =IF(ISERROR(X41+X44+X48+X50+X53),0,(X41+X44+X48+X50+X53)) -> 0 | AA55: =SUM(AA48+#REF!+AA53) ->  | AC55: =IF(ISERROR(AC41+AC44+AC48+AC50+AC53),0,(AC41+AC44+AC48+AC50+AC53)) -> 0 | AD55: =IF(ISERROR(AD41+AD44+AD48+AD50+AD53),0,(AD41+AD44+AD48+AD50+AD53)) -> 0
A57: Hinweise:
A58: 1 | B58: Diese Anlage ist dann nicht auszufüllen.
A59: 2 | B59: Bei Nr. 1.2 darf nur eine Eintragung erfolgen, wenn diese Umsatzerlöse in die einkommenssteuerliche Einkunftsermittlung aus Land- und Forstwirtschaft des antragstellenden Unternehmens eingehen. Ansonsten sind diese Erlöse bei Nr. 2.2 zu erfassen.
A60: · | B60: Bei Gesellschaften (auch in Kooperationen) ist die Anlage für jeden Gesellschafter einzeln erforderlich. Auch für Gesellschafter deren Kapitalanteil kleiner als 5% ist, ist die Anlage erforderlich.
A61: · | B61: Bei Kooperationen sind alle Umsatzerlösen der beteiligten Kooperationspartner zu ermitteln.
A62: · | B62: Maßgeblich sind die im Durchschnitt der Berichtsjahre erzielten Umsatzerlöse. Es sind immer die kompletten Umsatzerlöse aus den Buchabschlüssen zu erfassen.
A64: · | B64: Als Anlagen sind die der Berechnung zugrundeliegenden Jahresabschlüsse und die entsprechenden Gesellschaftsverträge/Kooperationsvereinbarungen vorzulegen.
A67: Mir / uns ist bekannt, dass das ausgefüllte Formblatt als Nachweis zur Erfüllung der Zuwendungsberechtigung beim Direktor der Landwirtschaftskammer NRW als Landesbeauftragter - EU-Zahlstelle - vorgelegt wird.
B73: Ort, Datum | R73: Name Buchstelle, Stempel, Unterschrift Bearbeiter / -in

Sheet Blatt 2
A1: Anlage: | D1: Berechnung der Umsatzerlöse aus bodengebundener Produktion
D2: zum Antrag auf Gewährung von Zuwendungen zur Förderung der Diversifzierung
A4: ='Blatt 1'!A4 -> 0
A5: Antragstellendes Unternehmen (Name, Vorname, ggf. Unternehmensbezeichnung)
C7: Der Unternehmer hat, außer der Bewirtschaftung des antragstellenden landwirtschaftlichen Unternehmens, keine weiteren Erlöse aus gewerblichen Nebenbetriebe, Gewerbebetrieb und/oder selbständiger Tätigkeit.1
R10: Unternehmernummer Antragsteller | AB10: FALSE
R11: ='Blatt 1'!R11 -> 0 | AB11: FALSE
G14: (Name, Vorname)
H16: mit | K16: % Anteil am antragstellendes Unternehmen
A18: Der genannte antragstellende Einzelunternehmer / Gesellschafter hat folgende Umsatzerlöse aus dem antragstellenden Unternehmen: | T18: Wirtschaftsjahr (anteilig) | AC18: Wirtschaftsjahr (100%) | AE18: =IF(AND(AB10=TRUE,AB11=TRUE),"bei Personenidentität Blatt 2 und Blatt 5 ausfüllen","") -> 
T19: EUR | AC19: =T19 -> EUR | AE19: Anteil am landwirtschaftlichen Unternehmen in %
T20: Vorjahr | X20: akt. Jahr | AC20: =T20 -> Vorjahr | AD20: =X20 -> akt. Jahr | AE20: Vorjahr | AF20: akt. Jahr
T21: ='Blatt 1'!T21 -> 0 | X21: ='Blatt 1'!X21 -> 0 | AC21: ='Blatt 1'!AC21 -> 0 | AD21: ='Blatt 1'!AD21 -> 0
A22: 1. | B22: Umsatzerlöse im Rahmen der einkommensteuerrechtlichen Einkunftsermittlung aus Land- und Forstwirtschaft
A24: 1.1 | B24: Umsatzerlöse aus pflanzlichen oder tierischen Erzeugnissen, die durch Bodenbewirtschaftung oder durch mit Bodenbewirtschaftung verbundene Tierhaltung gemäß Bewertungsgesetz gewonnen werden inkl. Bestandsveränderung
T27: =ROUND((AC27*$AE$21/100),0) -> 0 | X27: =ROUND((AD27*$AF$21/100),0) -> 0 | AC27: ='Blatt 1'!AC27 -> 0 | AD27: ='Blatt 1'!AD27 -> 0
A29: 1.2 | B29: Umsatzerlöse aus Direktvermarktung land- und forstwirtschaftlicher Erzeugnisse, sonstigen Bereichen (Urlaub auf dem Bauerhof, außerbetrieblicher Maschineneinsatz)2
T30: =ROUND((AC30*$AE$21/100),0) -> 0 | X30: =ROUND((AD30*$AF$21/100),0) -> 0 | AC30: ='Blatt 1'!AC30 -> 0 | AD30: ='Blatt 1'!AD30 -> 0
A32: 1.3 | B32: Zulagen und Zuschüsse (BMELV-Code 2449, etc.): | T32: =ROUND((AC32*$AE$21/100),0) -> 0 | X32: =ROUND((AD32*$AF$21/100),0) -> 0 | AC32: ='Blatt 1'!AC32 -> 0 | AD32: ='Blatt 1'!AD32 -> 0
B34: Summe der Nr. 1 (= Summe 1) | T34: =IF(ISERROR(T27+T30+T32),0,(T27+T30+T32)) -> 0 | W34: =SUM(W27+#REF!+W32) ->  | X34: =IF(ISERROR(X27+X30+X32),0,(X27+X30+X32)) -> 0 | AA34: =SUM(AA27+#REF!+AA32) ->  | AC34: =IF(ISERROR(AC27+AC30+AC32),0,(AC27+AC30+AC32)) -> 0 | AD34: =IF(ISERROR(AD27+AD30+AD32),0,(AD27+AD30+AD32)) -> 0
A36: 2. | B36: Umsatzerlöse im Rahmen der einkommensteuerrechtlichen Einkunfts-ermittlung aus Gewerbebetrieb und aus Land- und Forstwirtschaft ohne eigene Bodenbewirtschaftung
A39: 2.1 | B39: gewerbliche Umsatzerlöse im landwirtschaftl. Betrieb aus Handel, Dienst-leistungen, Nebenbetriebe (z.B. Hofladen) (BMELV-Code 2337, etc.):
B41: ='Blatt 1'!B41 -> 0 | T41: =ROUND((AC41*$AE$21/100),0) -> 0 | X41: =ROUND((AD41*$AF$21/100),0) -> 0 | AC41: ='Blatt 1'!AC41 -> 0 | AD41: ='Blatt 1'!AD41 -> 0
A43: 2.2 | B43: Pacht- und Mieterträge des antragstellenden Unternehmens (BMELV-Code 2325 + 2326, etc.)
T44: =ROUND((AC44*$AE$21/100),0) -> 0 | X44: =ROUND((AD44*$AF$21/100),0) -> 0 | AC44: ='Blatt 1'!AC44 -> 0 | AD44: ='Blatt 1'!AD44 -> 0
A46: 2.3 | B46: Umsatzerlöse aus folgenden beteiligten Gewerbebetrieb (z.B. Bauernhofcafe, Ferienwohnungen, Pferdepension, Photovoltaik, Biogas, Maschineneinsatz): | AE46: =IF(AE50>100,"Fehler!","") ->  | AF46: =IF(AF50>100,"Fehler!","") -> 
AE47: Anteil der Beteiligung in %
A48: a | T48: =ROUND(($I$16*AC48/100),0) -> 0 | X48: =ROUND(($I$16*AD48/100),0) -> 0 | AC48: ='Blatt 1'!AC48 -> 0 | AD48: ='Blatt 1'!AD48 -> 0 | AE48: =T20 -> Vorjahr | AF48: =X20 -> akt. Jahr | AG48: =IF(AND(AB10=TRUE,AB11=TRUE),"bei Personenidentität 2.3a nur auf Blatt 5 ausfüllen","") -> 
A50: b | T50: =ROUND((AC50*AE50/100),0) -> 0 | X50: =ROUND((AD50*AF50/100),0) -> 0 | AG50: =IF(AND(AB10=TRUE,AB11=TRUE),"bei Personenidentität 2.3b nur auf Blatt 2 ausfüllen","") -> 
A52: 2.4 | B52: Umsatzerlöse aus selbständiger Arbeit (z.B. freiberufliche Tätigkeiten wie Referententätigkeit)
T53: =ROUND((AC53),0) -> 0 | X53: =ROUND((AD53),0) -> 0 | AG53: =IF(AND(AB10=TRUE,AB11=TRUE),"bei Personenidentität 2.4 nur auf Blatt 2 ausfüllen","") -> 
B55: Summe der Nr. 2 (= Summe 2) | T55: =IF(ISERROR(T41+T44+T48+T50+T53),0,(T41+T44+T48+T50+T53)) -> 0 | W55: =SUM(W48+#REF!+W53) ->  | X55: =IF(ISERROR(X41+X44+X48+X50+X53),0,(X41+X44+X48+X50+X53)) -> 0 | AA55: =SUM(AA48+#REF!+AA53) ->  | AC55: =IF(ISERROR(AC41+AC44+AC48+AC50+AC53),0,(AC41+AC44+AC48+AC50+AC53)) -> 0 | AD55: =IF(ISERROR(AD41+AD44+AD48+AD50+AD53),0,(AD41+AD44+AD48+AD50+AD53)) -> 0
A57: Hinweise:
A58: 1 | B58: Diese Anlage ist dann nicht auszufüllen.
A59: 2 | B59: Bei Nr. 1.2 darf nur eine Eintragung erfolgen, wenn diese Umsatzerlöse in die einkommenssteuerliche Einkunftsermittlung aus Land- und Forstwirtschaft des antragstellenden Unternehmens eingehen. Ansonsten sind diese Erlöse bei Nr. 2.2 zu erfassen.
A60: · | B60: Bei Gesellschaften (auch in Kooperationen) ist die Anlage für jeden Gesellschafter einzeln erforderlich. Auch für Gesellschafter deren Kapitalanteil kleiner als 5% ist, ist die Anlage erforderlich.
A61: · | B61: Bei Kooperationen sind alle Umsatzerlösen der beteiligten Kooperationspartner zu ermitteln.
A62: · | B62: Maßgeblich sind die im Durchschnitt der Berichtsjahre erzielten Umsatzerlöse. Es sind immer die kompletten Umsatzerlöse aus den Buchabschlüssen zu erfassen.
A64: · | B64: Als Anlagen sind die der Berechnung zugrundeliegenden Jahresabschlüsse und die entsprechenden Gesellschaftsverträge/Kooperationsvereinbarungen vorzulegen.
A67: Mir / uns ist bekannt, dass das ausgefüllte Formblatt als Nachweis zur Erfüllung der Zuwendungsberechtigung beim Direktor der Landwirtschaftskammer NRW als Landesbeauftragter - EU-Zahlstelle - vorgelegt wird.
B72: ='Blatt 1'!B72 -> 0
B73: Ort, Datum | R73: Name Buchstelle, Stempel, Unterschrift Bearbeiter / -in

Sheet Blatt 3
A1: Anlage: | D1: Berechnung der Umsatzerlöse aus bodengebundener Produktion
D2: zum Antrag auf Gewährung von Zuwendungen zur Förderung der Diversifzierung
A4: ='Blatt 1'!A4 -> 0
A5: Antragstellendes Unternehmen (Name, Vorname, ggf. Unternehmensbezeichnung)
C7: Der Unternehmer hat, außer der Bewirtschaftung des antragstellenden landwirtschaftlichen Unternehmens, keine weiteren Erlöse aus gewerblichen Nebenbetriebe, Gewerbebetrieb und/oder selbständiger Tätigkeit.1
R10: Unternehmernummer Antragsteller | AB10: FALSE
R11: ='Blatt 1'!R11 -> 0 | AB11: FALSE
G14: (Name, Vorname)
H16: mit | K16: % Anteil am antragstellendes Unternehmen
A18: Der genannte antragstellende Einzelunternehmer / Gesellschafter hat folgende Umsatzerlöse aus dem antragstellenden Unternehmen: | T18: Wirtschaftsjahr (anteilig) | AC18: Wirtschaftsjahr (100%) | AE18: =IF(AND(AB10=TRUE,AB11=TRUE),"bei Personenidentität Blatt 3 und Blatt 6 ausfüllen","") -> 
T19: EUR | AC19: =T19 -> EUR | AE19: Anteil am landwirtschaftlichen Unternehmen in %
T20: Vorjahr | X20: akt. Jahr | AC20: =T20 -> Vorjahr | AD20: =X20 -> akt. Jahr | AE20: Vorjahr | AF20: akt. Jahr
T21: ='Blatt 1'!T21 -> 0 | X21: ='Blatt 1'!X21 -> 0 | AC21: ='Blatt 1'!AC21 -> 0 | AD21: ='Blatt 1'!AD21 -> 0
A22: 1. | B22: Umsatzerlöse im Rahmen der einkommensteuerrechtlichen Einkunftsermittlung aus Land- und Forstwirtschaft
A24: 1.1 | B24: Umsatzerlöse aus pflanzlichen oder tierischen Erzeugnissen, die durch Bodenbewirtschaftung oder durch mit Bodenbewirtschaftung verbundene Tierhaltung gemäß Bewertungsgesetz gewonnen werden inkl. Bestandsveränderung
T27: =ROUND((AC27*$AE$21/100),0) -> 0 | X27: =ROUND((AD27*$AF$21/100),0) -> 0 | AC27: ='Blatt 1'!AC27 -> 0 | AD27: ='Blatt 1'!AD27 -> 0
A29: 1.2 | B29: Umsatzerlöse aus Direktvermarktung land- und forstwirtschaftlicher Erzeugnisse, sonstigen Bereichen (Urlaub auf dem Bauerhof, außerbetrieblicher Maschineneinsatz)2
T30: =ROUND((AC30*$AE$21/100),0) -> 0 | X30: =ROUND((AD30*$AF$21/100),0) -> 0 | AC30: ='Blatt 1'!AC30 -> 0 | AD30: ='Blatt 1'!AD30 -> 0
A32: 1.3 | B32: Zulagen und Zuschüsse (BMELV-Code 2449, etc.): | T32: =ROUND((AC32*$AE$21/100),0) -> 0 | X32: =ROUND((AD32*$AF$21/100),0) -> 0 | AC32: ='Blatt 1'!AC32 -> 0 | AD32: ='Blatt 1'!AD32 -> 0
B34: Summe der Nr. 1 (= Summe 1) | T34: =IF(ISERROR(T27+T30+T32),0,(T27+T30+T32)) -> 0 | W34: =SUM(W27+#REF!+W32) ->  | X34: =IF(ISERROR(X27+X30+X32),0,(X27+X30+X32)) -> 0 | AA34: =SUM(AA27+#REF!+AA32) ->  | AC34: =IF(ISERROR(AC27+AC30+AC32),0,(AC27+AC30+AC32)) -> 0 | AD34: =IF(ISERROR(AD27+AD30+AD32),0,(AD27+AD30+AD32)) -> 0
A36: 2. | B36: Umsatzerlöse im Rahmen der einkommensteuerrechtlichen Einkunfts-ermittlung aus Gewerbebetrieb und aus Land- und Forstwirtschaft ohne eigene Bodenbewirtschaftung
A39: 2.1 | B39: gewerbliche Umsatzerlöse im landwirtschaftl. Betrieb aus Handel, Dienst-leistungen, Nebenbetriebe (z.B. Hofladen) (BMELV-Code 2337, etc.):
B41: ='Blatt 1'!B41 -> 0 | T41: =ROUND((AC41*$AE$21/100),0) -> 0 | X41: =ROUND((AD41*$AF$21/100),0) -> 0 | AC41: ='Blatt 1'!AC41 -> 0 | AD41: ='Blatt 1'!AD41 -> 0
A43: 2.2 | B43: Pacht- und Mieterträge des antragstellenden Unternehmens (BMELV-Code 2325 + 2326, etc.)
T44: =ROUND((AC44*$AE$21/100),0) -> 0 | X44: =ROUND((AD44*$AF$21/100),0) -> 0 | AC44: ='Blatt 1'!AC44 -> 0 | AD44: ='Blatt 1'!AD44 -> 0
A46: 2.3 | B46: Umsatzerlöse aus folgenden beteiligten Gewerbebetrieb (z.B. Bauernhofcafe, Ferienwohnungen, Pferdepension, Photovoltaik, Biogas, Maschineneinsatz): | AE46: =IF(AE50>100,"Fehler!","") ->  | AF46: =IF(AF50>100,"Fehler!","") -> 
AE47: Anteil der Beteiligung in %
A48: a | T48: =ROUND(($I$16*AC48/100),0) -> 0 | X48: =ROUND(($I$16*AD48/100),0) -> 0 | AC48: ='Blatt 1'!AC48 -> 0 | AD48: ='Blatt 1'!AD48 -> 0 | AE48: =T20 -> Vorjahr | AF48: =X20 -> akt. Jahr | AG48: =IF(AND(AB10=TRUE,AB11=TRUE),"bei Personenidentität 2.3a nur auf Blatt 6 ausfüllen","") -> 
A50: b | T50: =ROUND((AC50*AE50/100),0) -> 0 | X50: =ROUND((AD50*AF50/100),0) -> 0 | AG50: =IF(AND(AB10=TRUE,AB11=TRUE),"bei Personenidentität 2.3b nur auf Blatt 3 ausfüllen","") -> 
A52: 2.4 | B52: Umsatzerlöse aus selbständiger Arbeit (z.B. freiberufliche Tätigkeiten wie Referententätigkeit)
T53: =ROUND((AC53),0) -> 0 | X53: =ROUND((AD53),0) -> 0 | AG53: =IF(AND(AB10=TRUE,AB11=TRUE),"bei Personenidentität 2.4 nur auf Blatt 3 ausfüllen","") -> 
B55: Summe der Nr. 2 (= Summe 2) | T55: =IF(ISERROR(T41+T44+T48+T50+T53),0,(T41+T44+T48+T50+T53)) -> 0 | W55: =SUM(W48+#REF!+W53) ->  | X55: =IF(ISERROR(X41+X44+X48+X50+X53),0,(X41+X44+X48+X50+X53)) -> 0 | AA55: =SUM(AA48+#REF!+AA53) ->  | AC55: =IF(ISERROR(AC41+AC44+AC48+AC50+AC53),0,(AC41+AC44+AC48+AC50+AC53)) -> 0 | AD55: =IF(ISERROR(AD41+AD44+AD48+AD50+AD53),0,(AD41+AD44+AD48+AD50+AD53)) -> 0
A57: Hinweise:
A58: 1 | B58: Diese Anlage ist dann nicht auszufüllen.
A59: 2 | B59: Bei Nr. 1.2 darf nur eine Eintragung erfolgen, wenn diese Umsatzerlöse in die einkommenssteuerliche Einkunftsermittlung aus Land- und Forstwirtschaft des antragstellenden Unternehmens eingehen. Ansonsten sind diese Erlöse bei Nr. 2.2 zu erfassen.
A60: · | B60: Bei Gesellschaften (auch in Kooperationen) ist die Anlage für jeden Gesellschafter einzeln erforderlich. Auch für Gesellschafter deren Kapitalanteil kleiner als 5% ist, ist die Anlage erforderlich.
A61: · | B61: Bei Kooperationen sind alle Umsatzerlösen der beteiligten Kooperationspartner zu ermitteln.
A62: · | B62: Maßgeblich sind die im Durchschnitt der Berichtsjahre erzielten Umsatzerlöse. Es sind immer die kompletten Umsatzerlöse aus den Buchabschlüssen zu erfassen.
A64: · | B64: Als Anlagen sind die der Berechnung zugrundeliegenden Jahresabschlüsse und die entsprechenden Gesellschaftsverträge/Kooperationsvereinbarungen vorzulegen.
A67: Mir / uns ist bekannt, dass das ausgefüllte Formblatt als Nachweis zur Erfüllung der Zuwendungsberechtigung beim Direktor der Landwirtschaftskammer NRW als Landesbeauftragter - EU-Zahlstelle - vorgelegt wird.
B72: ='Blatt 1'!B72 -> 0
B73: Ort, Datum | R73: Name Buchstelle, Stempel, Unterschrift Bearbeiter / -in

Sheet Blatt 4
A1: Anlage: | D1: Berechnung der Umsatzerlöse aus bodengebundener Produktion
D2: zum Antrag auf Gewährung von Zuwendungen zur Förderung der Diversifzierung
A4: ='Blatt 1'!A4 -> 0
A5: Antragstellendes Unternehmen (Name, Vorname, ggf. Unternehmensbezeichnung)
C7: Der Unternehmer hat, außer der Bewirtschaftung des antragstellenden landwirtschaftlichen Unternehmens, keine weiteren Erlöse aus gewerblichen Nebenbetriebe, Gewerbebetrieb und/oder selbständiger Tätigkeit.1
R10: Unternehmernummer Antragsteller | AB10: FALSE
R11: ='Blatt 1'!R11 -> 0 | AB11: FALSE
G13: =IF(AND('Blatt 1'!AB10,'Blatt 1'!AB11,AB10=TRUE,AB11=TRUE),'Blatt 1'!G13,"") -> 
G14: (Name, Vorname)
H16: mit | K16: % Anteil am antragstellendes Unternehmen
A18: Der genannte antragstellende Einzelunternehmer / Gesellschafter hat folgende Umsatzerlöse aus dem antragstellenden Unternehmen: | T18: Wirtschaftsjahr | AC18: Wirtschaftsjahr (100%)
T19: EUR | AC19: =T19 -> EUR | AE19: =IF(AND(AB10=TRUE,AB11=TRUE),"bei Personenidentität Blatt 4 und Blatt 1 ausfüllen","") -> 
T20: Vorjahr | X20: akt. Jahr | AC20: =T20 -> Vorjahr | AD20: =X20 -> akt. Jahr
T21: =AC21 -> 0 | X21: =AD21 -> 0 | AC21: ='Blatt 1'!AC21 -> 0 | AD21: ='Blatt 1'!AD21 -> 0
A22: 1. | B22: Umsatzerlöse im Rahmen der einkommensteuerrechtlichen Einkunftsermittlung aus Land- und Forstwirtschaft
A24: 1.1 | B24: Umsatzerlöse aus pflanzlichen oder tierischen Erzeugnissen, die durch Bodenbewirtschaftung oder durch mit Bodenbewirtschaftung verbundene Tierhaltung gemäß Bewertungsgesetz gewonnen werden inkl. Bestandsveränderung
AC27: =IF(AND('Blatt 1'!$AB$10=TRUE,'Blatt 1'!$AB$11=TRUE),'Blatt 1'!AC27,0) -> 0 | AD27: =IF(AND('Blatt 1'!$AB$10=TRUE,'Blatt 1'!$AB$11=TRUE),'Blatt 1'!AD27,0) -> 0
A29: 1.2 | B29: Umsatzerlöse aus Direktvermarktung land- und forstwirtschaftlicher Erzeugnisse, sonstigen Bereichen (Urlaub auf dem Bauerhof, außerbetrieblicher Maschineneinsatz)2
AC30: =IF(AND('Blatt 1'!$AB$10=TRUE,'Blatt 1'!$AB$11=TRUE),'Blatt 1'!AC30,0) -> 0 | AD30: =IF(AND('Blatt 1'!$AB$10=TRUE,'Blatt 1'!$AB$11=TRUE),'Blatt 1'!AD30,0) -> 0
A32: 1.3 | B32: Zulagen und Zuschüsse (BMELV-Code 2449, etc.): | AC32: =IF(AND('Blatt 1'!$AB$10=TRUE,'Blatt 1'!$AB$11=TRUE),'Blatt 1'!AC32,0) -> 0 | AD32: =IF(AND('Blatt 1'!$AB$10=TRUE,'Blatt 1'!$AB$11=TRUE),'Blatt 1'!AD32,0) -> 0
B34: Summe der Nr. 1 (= Summe 1) | T34: =IF(ISERROR(T27+T30+T32),0,(T27+T30+T32)) -> 0 | W34: =SUM(W27+#REF!+W32) ->  | X34: =IF(ISERROR(X27+X30+X32),0,(X27+X30+X32)) -> 0 | AA34: =SUM(AA27+#REF!+AA32) ->  | AC34: =IF(ISERROR(AC27+AC30+AC32),0,(AC27+AC30+AC32)) -> 0 | AD34: =IF(ISERROR(AD27+AD30+AD32),0,(AD27+AD30+AD32)) -> 0
A36: 2. | B36: Umsatzerlöse im Rahmen der einkommensteuerrechtlichen Einkunfts-ermittlung aus Gewerbebetrieb und aus Land- und Forstwirtschaft ohne eigene Bodenbewirtschaftung
A39: 2.1 | B39: gewerbliche Umsatzerlöse im landwirtschaftl. Betrieb aus Handel, Dienst-leistungen, Nebenbetriebe (z.B. Hofladen) (BMELV-Code 2337, etc.):
B41: =IF(AND('Blatt 2'!$AB$10=TRUE,'Blatt 2'!$AB$11=TRUE),'Blatt 2'!B41,"") ->  | AC41: =IF(AND('Blatt 1'!$AB$10=TRUE,'Blatt 1'!$AB$11=TRUE),'Blatt 1'!AC41,0) -> 0 | AD41: =IF(AND('Blatt 1'!$AB$10=TRUE,'Blatt 1'!$AB$11=TRUE),'Blatt 1'!AD41,0) -> 0
A43: 2.2 | B43: Pacht- und Mieterträge des antragstellenden Unternehmens (BMELV-Code 2325 + 2326, etc.)
AC44: =IF(AND('Blatt 1'!$AB$10=TRUE,'Blatt 1'!$AB$11=TRUE),'Blatt 1'!AC44,0) -> 0 | AD44: =IF(AND('Blatt 1'!$AB$10=TRUE,'Blatt 1'!$AB$11=TRUE),'Blatt 1'!AD44,0) -> 0 | AE44: =IF(AE48>100,"Fehler!","") ->  | AF44: =IF(AF48>100,"Fehler!","") -> 
A46: 2.3 | B46: Umsatzerlöse aus folgenden beteiligten Gewerbebetrieb (z.B. Bauernhofcafe, Ferienwohnungen, Pferdepension, Photovoltaik, Biogas, Maschineneinsatz): | AE46: Anteil der Beteiligung in %
AE47: =T20 -> Vorjahr | AF47: =X20 -> akt. Jahr
A48: a | T48: =ROUND((AC48*AE48/100),0) -> 0 | X48: =ROUND((AD48*AF48/100),0) -> 0 | AG48: =IF(AND(AB10=TRUE,AB11=TRUE),"bei Personenidentität 2.3a nur auf Blatt 4 ausfüllen","") -> 
A50: b | T50: =ROUND((AC50*AE50/100),0) -> 0 | X50: =ROUND((AD50*AF50/100),0) -> 0 | AG50: =IF(AND(AB10=TRUE,AB11=TRUE),"bei Personenidentität 2.3b nur auf Blatt 1 ausfüllen","") -> 
A52: 2.4 | B52: Umsatzerlöse aus selbständiger Arbeit (z.B. freiberufliche Tätigkeiten wie Referententätigkeit) | AE52: =IF(AE50>100,"Fehler!","") ->  | AF52: =IF(AF50>100,"Fehler!","") ->  | AG52: =IF(AND(AB9=TRUE,AB10=TRUE),"bei Personenidentität 2.4 nur auf Blatt 1 ausfüllen","") -> 
T53: =ROUND((AC53),0) -> 0 | X53: =ROUND((AD53),0) -> 0 | AG53: =IF(AND(AB10=TRUE,AB11=TRUE),"bei Personenidentität 2.4 nur auf Blatt 1 ausfüllen","") -> 
B55: Summe der Nr. 2 (= Summe 2) | T55: =IF(ISERROR(T41+T44+T50+T48+T53),0,(T41+T44+T50+T48+T53)) -> 0 | X55: =IF(ISERROR(X41+X44+X50+X48+X53),0,(X41+X44+X50+X48+X53)) -> 0 | AC55: =IF(ISERROR(AC41+AC44+AC50+AC48+AC53),0,(AC41+AC44+AC50+AC48+AC53)) -> 0 | AD55: =IF(ISERROR(AD41+AD44+AD50+AD48+AD53),0,(AD41+AD44+AD50+AD48+AD53)) -> 0
A57: Hinweise:
A58: 1 | B58: Diese Anlage ist dann nicht auszufüllen.
A59: 2 | B59: Bei Nr. 1.2 darf nur eine Eintragung erfolgen, wenn diese Umsatzerlöse in die einkommenssteuerliche Einkunftsermittlung aus Land- und Forstwirtschaft des antragstellenden Unternehmens eingehen. Ansonsten sind diese Erlöse bei Nr. 2.2 zu erfassen.
A60: · | B60: Bei Gesellschaften (auch in Kooperationen) ist die Anlage für jeden Gesellschafter einzeln erforderlich. Auch für Gesellschafter deren Kapitalanteil kleiner als 5% ist, ist die Anlage erforderlich.
A61: · | B61: Bei Kooperationen sind alle Umsatzerlösen der beteiligten Kooperationspartner zu ermitteln.
A62: · | B62: Maßgeblich sind die im Durchschnitt der Berichtsjahre erzielten Umsatzerlöse. Es sind immer die kompletten Umsatzerlöse aus den Buchabschlüssen zu erfassen.
A64: · | B64: Als Anlagen sind die der Berechnung zugrundeliegenden Jahresabschlüsse und die entsprechenden Gesellschaftsverträge/Kooperationsvereinbarungen vorzulegen.
A67: Mir / uns ist bekannt, dass das ausgefüllte Formblatt als Nachweis zur Erfüllung der Zuwendungsberechtigung beim Direktor der Landwirtschaftskammer NRW als Landesbeauftragter - EU-Zahlstelle - vorgelegt wird.
B72: ='Blatt 1'!B72 -> 0
B73: Ort, Datum | R73: Name Buchstelle, Stempel, Unterschrift Bearbeiter / -in

Sheet Blatt 5
A1: Anlage: | D1: Berechnung der Umsatzerlöse aus bodengebundener Produktion
D2: zum Antrag auf Gewährung von Zuwendungen zur Förderung der Diversifzierung
A4: ='Blatt 1'!A4 -> 0
A5: Antragstellendes Unternehmen (Name, Vorname, ggf. Unternehmensbezeichnung)
C7: Der Unternehmer hat, außer der Bewirtschaftung des antragstellenden landwirtschaftlichen Unternehmens, keine weiteren Erlöse aus gewerblichen Nebenbetriebe, Gewerbebetrieb und/oder selbständiger Tätigkeit.1
R10: Unternehmernummer Antragsteller | AB10: FALSE
R11: ='Blatt 1'!R11 -> 0 | AB11: FALSE
G13: =IF(AND('Blatt 2'!AB10,'Blatt 2'!AB11,AB10=TRUE,AB11=TRUE),'Blatt 2'!G13,"") -> 
G14: (Name, Vorname)
H16: mit | K16: % Anteil am antragstellendes Unternehmen
A18: Der genannte antragstellende Einzelunternehmer / Gesellschafter hat folgende Umsatzerlöse aus dem antragstellenden Unternehmen: | T18: Wirtschaftsjahr | AC18: Wirtschaftsjahr (100%)
T19: EUR | AC19: =T19 -> EUR | AE19: =IF(AND(AB10=TRUE,AB11=TRUE),"bei Personenidentität Blatt 5 und Blatt 2 ausfüllen","") -> 
T20: Vorjahr | X20: akt. Jahr | AC20: =T20 -> Vorjahr | AD20: =X20 -> akt. Jahr
T21: =AC21 -> 0 | X21: =AD21 -> 0 | AC21: ='Blatt 4'!AC21 -> 0 | AD21: ='Blatt 4'!AD21 -> 0
A22: 1. | B22: Umsatzerlöse im Rahmen der einkommensteuerrechtlichen Einkunftsermittlung aus Land- und Forstwirtschaft
A24: 1.1 | B24: Umsatzerlöse aus pflanzlichen oder tierischen Erzeugnissen, die durch Bodenbewirtschaftung oder durch mit Bodenbewirtschaftung verbundene Tierhaltung gemäß Bewertungsgesetz gewonnen werden inkl. Bestandsveränderung
AC27: =IF(AND('Blatt 2'!$AB$10=TRUE,'Blatt 2'!$AB$11=TRUE),'Blatt 2'!AC27,0) -> 0 | AD27: =IF(AND('Blatt 2'!$AB$10=TRUE,'Blatt 2'!$AB$11=TRUE),'Blatt 2'!AD27,0) -> 0
A29: 1.2 | B29: Umsatzerlöse aus Direktvermarktung land- und forstwirtschaftlicher Erzeugnisse, sonstigen Bereichen (Urlaub auf dem Bauerhof, außerbetrieblicher Maschineneinsatz)2
AC30: =IF(AND('Blatt 2'!$AB$10=TRUE,'Blatt 2'!$AB$11=TRUE),'Blatt 2'!AC30,0) -> 0 | AD30: =IF(AND('Blatt 2'!$AB$10=TRUE,'Blatt 2'!$AB$11=TRUE),'Blatt 2'!AD30,0) -> 0
A32: 1.3 | B32: Zulagen und Zuschüsse (BMELV-Code 2449, etc.): | AC32: =IF(AND('Blatt 2'!$AB$10=TRUE,'Blatt 2'!$AB$11=TRUE),'Blatt 2'!AC32,0) -> 0 | AD32: =IF(AND('Blatt 2'!$AB$10=TRUE,'Blatt 2'!$AB$11=TRUE),'Blatt 2'!AD32,0) -> 0
B34: Summe der Nr. 1 (= Summe 1) | T34: =IF(ISERROR(T27+T30+T32),0,(T27+T30+T32)) -> 0 | W34: =SUM(W27+#REF!+W32) ->  | X34: =IF(ISERROR(X27+X30+X32),0,(X27+X30+X32)) -> 0 | AA34: =SUM(AA27+#REF!+AA32) ->  | AC34: =IF(ISERROR(AC27+AC30+AC32),0,(AC27+AC30+AC32)) -> 0 | AD34: =IF(ISERROR(AD27+AD30+AD32),0,(AD27+AD30+AD32)) -> 0
A36: 2. | B36: Umsatzerlöse im Rahmen der einkommensteuerrechtlichen Einkunfts-ermittlung aus Gewerbebetrieb und aus Land- und Forstwirtschaft ohne eigene Bodenbewirtschaftung
A39: 2.1 | B39: gewerbliche Umsatzerlöse im landwirtschaftl. Betrieb aus Handel, Dienst-leistungen, Nebenbetriebe (z.B. Hofladen) (BMELV-Code 2337, etc.):
B41: =IF(AND('Blatt 2'!$AB$10=TRUE,'Blatt 2'!$AB$11=TRUE),'Blatt 2'!B41,"") ->  | AC41: =IF(AND('Blatt 2'!$AB$10=TRUE,'Blatt 2'!$AB$11=TRUE),'Blatt 2'!AC41,0) -> 0 | AD41: =IF(AND('Blatt 2'!$AB$10=TRUE,'Blatt 2'!$AB$11=TRUE),'Blatt 2'!AD41,0) -> 0
A43: 2.2 | B43: Pacht- und Mieterträge des antragstellenden Unternehmens (BMELV-Code 2325 + 2326, etc.)
AC44: =IF(AND('Blatt 2'!$AB$10=TRUE,'Blatt 2'!$AB$11=TRUE),'Blatt 2'!AC44,0) -> 0 | AD44: =IF(AND('Blatt 2'!$AB$10=TRUE,'Blatt 2'!$AB$11=TRUE),'Blatt 2'!AD44,0) -> 0 | AE44: =IF(AE48>100,"Fehler!","") ->  | AF44: =IF(AF48>100,"Fehler!","") -> 
A46: 2.3 | B46: Umsatzerlöse aus folgenden beteiligten Gewerbebetrieb (z.B. Bauernhofcafe, Ferienwohnungen, Pferdepension, Photovoltaik, Biogas, Maschineneinsatz): | AE46: Anteil der Beteiligung in %
AE47: =T20 -> Vorjahr | AF47: =X20 -> akt. Jahr
A48: a | T48: =ROUND((AC48*AE48/100),0) -> 0 | X48: =ROUND((AD48*AF48/100),0) -> 0 | AG48: =IF(AND(AB10=TRUE,AB11=TRUE),"bei Personenidentität 2.3a nur auf Blatt 5 ausfüllen","") -> 
A50: b | T50: =ROUND((AC50),0) -> 0 | X50: =ROUND((AD50),0) -> 0 | AG50: =IF(AND(AB10=TRUE,AB11=TRUE),"bei Personenidentität 2.3b nur auf Blatt 2 ausfüllen","") -> 
A52: 2.4 | B52: Umsatzerlöse aus selbständiger Arbeit (z.B. freiberufliche Tätigkeiten wie Referententätigkeit) | AE52: =IF(AE50>100,"Fehler!","") ->  | AF52: =IF(AF50>100,"Fehler!","") -> 
T53: =ROUND((AC53),0) -> 0 | X53: =ROUND((AD53),0) -> 0 | AG53: =IF(AND(AB10=TRUE,AB11=TRUE),"bei Personenidentität 2.4 nur auf Blatt 2 ausfüllen","") -> 
B55: Summe der Nr. 2 (= Summe 2) | T55: =IF(ISERROR(T41+T44+T50+T48+T53),0,(T41+T44+T50+T48+T53)) -> 0 | X55: =IF(ISERROR(X41+X44+X50+X48+X53),0,(X41+X44+X50+X48+X53)) -> 0 | AC55: =IF(ISERROR(AC41+AC44+AC50+AC48+AC53),0,(AC41+AC44+AC50+AC48+AC53)) -> 0 | AD55: =IF(ISERROR(AD41+AD44+AD50+AD48+AD53),0,(AD41+AD44+AD50+AD48+AD53)) -> 0
A57: Hinweise:
A58: 1 | B58: Diese Anlage ist dann nicht auszufüllen.
A59: 2 | B59: Bei Nr. 1.2 darf nur eine Eintragung erfolgen, wenn diese Umsatzerlöse in die einkommenssteuerliche Einkunftsermittlung aus Land- und Forstwirtschaft des antragstellenden Unternehmens eingehen. Ansonsten sind diese Erlöse bei Nr. 2.2 zu erfassen.
A60: · | B60: Bei Gesellschaften (auch in Kooperationen) ist die Anlage für jeden Gesellschafter einzeln erforderlich. Auch für Gesellschafter deren Kapitalanteil kleiner als 5% ist, ist die Anlage erforderlich.
A61: · | B61: Bei Kooperationen sind alle Umsatzerlösen der beteiligten Kooperationspartner zu ermitteln.
A62: · | B62: Maßgeblich sind die im Durchschnitt der Berichtsjahre erzielten Umsatzerlöse. Es sind immer die kompletten Umsatzerlöse aus den Buchabschlüssen zu erfassen.
A64: · | B64: Als Anlagen sind die der Berechnung zugrundeliegenden Jahresabschlüsse und die entsprechenden Gesellschaftsverträge/Kooperationsvereinbarungen vorzulegen.
A67: Mir / uns ist bekannt, dass das ausgefüllte Formblatt als Nachweis zur Erfüllung der Zuwendungsberechtigung beim Direktor der Landwirtschaftskammer NRW als Landesbeauftragter - EU-Zahlstelle - vorgelegt wird.
B72: ='Blatt 1'!B72 -> 0
B73: Ort, Datum | R73: Name Buchstelle, Stempel, Unterschrift Bearbeiter / -in

Sheet Blatt 6
A1: Anlage: | D1: Berechnung der Umsatzerlöse aus bodengebundener Produktion
D2: zum Antrag auf Gewährung von Zuwendungen zur Förderung der Diversifzierung
A4: ='Blatt 1'!A4 -> 0
A5: Antragstellendes Unternehmen (Name, Vorname, ggf. Unternehmensbezeichnung)
C7: Der Unternehmer hat, außer der Bewirtschaftung des antragstellenden landwirtschaftlichen Unternehmens, keine weiteren Erlöse aus gewerblichen Nebenbetriebe, Gewerbebetrieb und/oder selbständiger Tätigkeit.1
R10: Unternehmernummer Antragsteller | AB10: FALSE
R11: ='Blatt 1'!R11 -> 0 | AB11: FALSE
G13: =IF(AND('Blatt 3'!AB10,'Blatt 3'!AB11,AB10=TRUE,AB11=TRUE),'Blatt 3'!G13,"") -> 
G14: (Name, Vorname)
H16: mit | K16: % Anteil am antragstellendes Unternehmen
A18: Der genannte antragstellende Einzelunternehmer / Gesellschafter hat folgende Umsatzerlöse aus dem antragstellenden Unternehmen: | T18: Wirtschaftsjahr | AC18: Wirtschaftsjahr (100%)
T19: EUR | AC19: =T19 -> EUR | AE19: =IF(AND(AB10=TRUE,AB11=TRUE),"bei Personenidentität Blatt 6 und Blatt 3 ausfüllen","") -> 
T20: Vorjahr | X20: akt. Jahr | AC20: =T20 -> Vorjahr | AD20: =X20 -> akt. Jahr
T21: =AC21 -> 0 | X21: =AD21 -> 0 | AC21: ='Blatt 4'!AC21 -> 0 | AD21: ='Blatt 4'!AD21 -> 0
A22: 1. | B22: Umsatzerlöse im Rahmen der einkommensteuerrechtlichen Einkunftsermittlung aus Land- und Forstwirtschaft
A24: 1.1 | B24: Umsatzerlöse aus pflanzlichen oder tierischen Erzeugnissen, die durch Bodenbewirtschaftung oder durch mit Bodenbewirtschaftung verbundene Tierhaltung gemäß Bewertungsgesetz gewonnen werden inkl. Bestandsveränderung
AC27: =IF(AND('Blatt 3'!$AB$10=TRUE,'Blatt 3'!$AB$11=TRUE),'Blatt 3'!AC27,0) -> 0 | AD27: =IF(AND('Blatt 3'!$AB$10=TRUE,'Blatt 3'!$AB$11=TRUE),'Blatt 3'!AD27,0) -> 0
A29: 1.2 | B29: Umsatzerlöse aus Direktvermarktung land- und forstwirtschaftlicher Erzeugnisse, sonstigen Bereichen (Urlaub auf dem Bauerhof, außerbetrieblicher Maschineneinsatz)2
AC30: =IF(AND('Blatt 3'!$AB$10=TRUE,'Blatt 3'!$AB$11=TRUE),'Blatt 3'!AC30,0) -> 0 | AD30: =IF(AND('Blatt 3'!$AB$10=TRUE,'Blatt 3'!$AB$11=TRUE),'Blatt 3'!AD30,0) -> 0
A32: 1.3 | B32: Zulagen und Zuschüsse (BMELV-Code 2449, etc.): | AC32: =IF(AND('Blatt 3'!$AB$10=TRUE,'Blatt 3'!$AB$11=TRUE),'Blatt 3'!AC32,0) -> 0 | AD32: =IF(AND('Blatt 3'!$AB$10=TRUE,'Blatt 3'!$AB$11=TRUE),'Blatt 3'!AD32,0) -> 0
B34: Summe der Nr. 1 (= Summe 1) | T34: =IF(ISERROR(T27+T30+T32),0,(T27+T30+T32)) -> 0 | W34: =SUM(W27+#REF!+W32) ->  | X34: =IF(ISERROR(X27+X30+X32),0,(X27+X30+X32)) -> 0 | AA34: =SUM(AA27+#REF!+AA32) ->  | AC34: =IF(ISERROR(AC27+AC30+AC32),0,(AC27+AC30+AC32)) -> 0 | AD34: =IF(ISERROR(AD27+AD30+AD32),0,(AD27+AD30+AD32)) -> 0
A36: 2. | B36: Umsatzerlöse im Rahmen der einkommensteuerrechtlichen Einkunfts-ermittlung aus Gewerbebetrieb und aus Land- und Forstwirtschaft ohne eigene Bodenbewirtschaftung
A39: 2.1 | B39: gewerbliche Umsatzerlöse im landwirtschaftl. Betrieb aus Handel, Dienst-leistungen, Nebenbetriebe (z.B. Hofladen) (BMELV-Code 2337, etc.):
B41: =IF(AND('Blatt 3'!$AB$10=TRUE,'Blatt 3'!$AB$11=TRUE),'Blatt 3'!B41,"") ->  | AC41: =IF(AND('Blatt 3'!$AB$10=TRUE,'Blatt 3'!$AB$11=TRUE),'Blatt 3'!AC41,0) -> 0 | AD41: =IF(AND('Blatt 3'!$AB$10=TRUE,'Blatt 3'!$AB$11=TRUE),'Blatt 3'!AD41,0) -> 0
A43: 2.2 | B43: Pacht- und Mieterträge des antragstellenden Unternehmens (BMELV-Code 2325 + 2326, etc.)
AC44: =IF(AND('Blatt 3'!$AB$10=TRUE,'Blatt 3'!$AB$11=TRUE),'Blatt 3'!AC44,0) -> 0 | AD44: =IF(AND('Blatt 3'!$AB$10=TRUE,'Blatt 3'!$AB$11=TRUE),'Blatt 3'!AD44,0) -> 0 | AE44: =IF(AE48>100,"Fehler!","") ->  | AF44: =IF(AF48>100,"Fehler!","") -> 
A46: 2.3 | B46: Umsatzerlöse aus folgenden beteiligten Gewerbebetrieb (z.B. Bauernhofcafe, Ferienwohnungen, Pferdepension, Photovoltaik, Biogas, Maschineneinsatz): | AE46: Anteil der Beteiligung in %
AE47: =T20 -> Vorjahr | AF47: =X20 -> akt. Jahr
A48: a | T48: =ROUND((AC48*AE48/100),0) -> 0 | X48: =ROUND((AD48*AF48/100),0) -> 0 | AG48: =IF(AND(AB10=TRUE,AB11=TRUE),"bei Personenidentität 2.3a nur auf Blatt 6 ausfüllen","") -> 
A50: b | T50: =ROUND((AC50),0) -> 0 | X50: =ROUND((AD50),0) -> 0 | AG50: =IF(AND(AB10=TRUE,AB11=TRUE),"bei Personenidentität 2.3b nur auf Blatt 3 ausfüllen","") -> 
A52: 2.4 | B52: Umsatzerlöse aus selbständiger Arbeit (z.B. freiberufliche Tätigkeiten wie Referententätigkeit) | AE52: =IF(AE50>100,"Fehler!","") ->  | AF52: =IF(AF50>100,"Fehler!","") -> 
T53: =ROUND((AC53),0) -> 0 | X53: =ROUND((AD53),0) -> 0 | AG53: =IF(AND(AB10=TRUE,AB11=TRUE),"bei Personenidentität 2.4 nur auf Blatt 3 ausfüllen","") -> 
B55: Summe der Nr. 2 (= Summe 2) | T55: =IF(ISERROR(T41+T44+T50+T48+T53),0,(T41+T44+T50+T48+T53)) -> 0 | X55: =IF(ISERROR(X41+X44+X50+X48+X53),0,(X41+X44+X50+X48+X53)) -> 0 | AC55: =IF(ISERROR(AC41+AC44+AC50+AC48+AC53),0,(AC41+AC44+AC50+AC48+AC53)) -> 0 | AD55: =IF(ISERROR(AD41+AD44+AD50+AD48+AD53),0,(AD41+AD44+AD50+AD48+AD53)) -> 0
A57: Hinweise:
A58: 1 | B58: Diese Anlage ist dann nicht auszufüllen.
A59: 2 | B59: Bei Nr. 1.2 darf nur eine Eintragung erfolgen, wenn diese Umsatzerlöse in die einkommenssteuerliche Einkunftsermittlung aus Land- und Forstwirtschaft des antragstellenden Unternehmens eingehen. Ansonsten sind diese Erlöse bei Nr. 2.2 zu erfassen.
A60: · | B60: Bei Gesellschaften (auch in Kooperationen) ist die Anlage für jeden Gesellschafter einzeln erforderlich. Auch für Gesellschafter deren Kapitalanteil kleiner als 5% ist, ist die Anlage erforderlich.
A61: · | B61: Bei Kooperationen sind alle Umsatzerlösen der beteiligten Kooperationspartner zu ermitteln.
A62: · | B62: Maßgeblich sind die im Durchschnitt der Berichtsjahre erzielten Umsatzerlöse. Es sind immer die kompletten Umsatzerlöse aus den Buchabschlüssen zu erfassen.
A64: · | B64: Als Anlagen sind die der Berechnung zugrundeliegenden Jahresabschlüsse und die entsprechenden Gesellschaftsverträge/Kooperationsvereinbarungen vorzulegen.
A67: Mir / uns ist bekannt, dass das ausgefüllte Formblatt als Nachweis zur Erfüllung der Zuwendungsberechtigung beim Direktor der Landwirtschaftskammer NRW als Landesbeauftragter - EU-Zahlstelle - vorgelegt wird.
B72: ='Blatt 1'!B72 -> 0
B73: Ort, Datum | R73: Name Buchstelle, Stempel, Unterschrift Bearbeiter / -in

Sheet Zusammenfassung
A1: Anlage: | D1: Zusammenfassende Berechnung der Umsatzerlöse aus bodengebundener Produktion
D2: zum Antrag auf Gewährung von Zuwendungen zur Förderung der Diversifzierung
A4: ='Blatt 1'!A4 -> 0
A5: Antragstellendes Unternehmen (Name, Vorname, ggf. Unternehmensbezeichnung)
S7: Unternehmernummer Antragsteller
S8: ='Blatt 1'!R11 -> 0
B10: ='Blatt 1'!I16+'Blatt 2'!I16+'Blatt 3'!I16+'Blatt 4'!I16+'Blatt 5'!I16+'Blatt 6'!I16 -> 0 | D10: % Summe angebenener Anteile am antragstellendes Unternehmen | Z10: =IF(AND(B10>0,B10>100),"Fehler!","") ->  | AD10: =IF(AND(B10>100,AI10>0),"Anteil landwirtschaftlicher Kooperationspartner ist","") ->  | AI10: =IF(AND(B10>100,'Blatt 1'!AB10=TRUE),'Blatt 1'!I16+'Blatt 2'!I16+'Blatt 3'!I16,"") ->  | AJ10: =IF(AND(B10>100,AI10>0),"%","") -> 
A12: Der genannte antragstellende Einzelunternehmer / Gesellschafter hat folgende Umsatzerlöse: | S12: Wirtschaftsjahr | AA12: Æ der Berichtsjahre | AD12: =IF(AND(B10>100,AI12>0),"Anteil gewerblicher Kooperationspartner ist ","") ->  | AI12: =IF(AND(B10>100,'Blatt 4'!AB10=TRUE),'Blatt 4'!I16+'Blatt 5'!I16+'Blatt 6'!I16,"") ->  | AJ12: =IF(AND(B10>100,AI12>0),"%","") -> 
R13: Blatt | S13: EUR
S14: Vorjahr | W14: akt. Jahr
S15: ='Blatt 1'!T21 -> 0 | W15: ='Blatt 1'!X21 -> 0
S16: ='Blatt 4'!T21 -> 0 | W16: ='Blatt 4'!X21 -> 0 | AD16: Vorjahr | AE16: akt. Jahr
A17: 1. | B17: Summe Umsatzerlöse im Rahmen der einkommensteuerrecht-lichen Einkunftsermittlung aus Land- und Forstwirtschaft für (Name, Vorname) | AD17: ='Blatt 1'!AE21+'Blatt 2'!AE21+'Blatt 3'!AE21 -> 0 | AE17: ='Blatt 1'!AF21+'Blatt 2'!AF21+'Blatt 3'!AF21 -> 0 | AF17: % Summe angebenener Anteile am landwirtschaftlichen Unternehmen
AD18: =IF(AND(AD17>0,AD17>100),"Fehler!","") ->  | AE18: =IF(AND(AE17>0,AE17>100),"Fehler!","") -> 
B21: ='Blatt 1'!G13 -> 0 | R21: 1 | S21: ='Blatt 1'!T34 -> 0 | W21: ='Blatt 1'!X34 -> 0
B23: ='Blatt 2'!G13 -> 0 | R23: 2 | S23: ='Blatt 2'!T34 -> 0 | W23: ='Blatt 2'!X34 -> 0
B25: ='Blatt 3'!G13 -> 0 | R25: 3 | S25: ='Blatt 3'!T34 -> 0 | W25: ='Blatt 3'!X34 -> 0
B27: ='Blatt 4'!G13 ->  | R27: 4 | S27: ='Blatt 4'!T34 -> 0 | W27: ='Blatt 4'!X34 -> 0
B29: ='Blatt 5'!G13 ->  | R29: 5 | S29: ='Blatt 5'!T34 -> 0 | W29: ='Blatt 5'!X34 -> 0
B31: ='Blatt 6'!G13 ->  | R31: 6 | S31: ='Blatt 6'!T34 -> 0 | W31: ='Blatt 6'!X34 -> 0
B33: Summe der Nr. 1 (= Summe 1) | S33: =SUM(S21:V32) -> 0 | W33: =SUM(W21:Z32) -> 0 | AA33: =AVERAGE(S33:Z33) -> 0
A35: 2. | B35: Umsatzerlöse im Rahmen der einkommensteuerrechtlichen Einkunftsermittlung aus Gewerbebetrieb und aus Land- und Forstwirtschaft ohne eigene Bodenbewirtschaftung für (Name, Vorname)
B38: ='Blatt 1'!G13 -> 0 | R38: 1 | S38: ='Blatt 1'!T55 -> 0 | W38: ='Blatt 1'!X55 -> 0
B40: ='Blatt 2'!G13 -> 0 | R40: 2 | S40: ='Blatt 2'!T55 -> 0 | W40: ='Blatt 2'!X55 -> 0
B42: ='Blatt 3'!G13 -> 0 | R42: 3 | S42: ='Blatt 3'!T55 -> 0 | W42: ='Blatt 3'!X55 -> 0
B44: ='Blatt 4'!G13 ->  | R44: 4 | S44: ='Blatt 4'!T55 -> 0 | W44: ='Blatt 4'!X55 -> 0
B46: ='Blatt 5'!G13 ->  | R46: 5 | S46: ='Blatt 5'!T55 -> 0 | W46: ='Blatt 5'!X55 -> 0
B48: ='Blatt 6'!G13 ->  | R48: 6 | S48: ='Blatt 6'!T55 -> 0 | W48: ='Blatt 6'!X55 -> 0
B51: Summe der Nr. 2 (= Summe 2) | S51: =SUM(S38:V50) -> 0 | W51: =SUM(W38:Z50) -> 0 | AA51: =AVERAGE(S51:Z51) -> 0 | AD51: ='Blatt 4'!$AE$48+'Blatt 5'!AE48+'Blatt 6'!AE48 -> 0 | AE51: ='Blatt 4'!$AF$48+'Blatt 5'!AF48+'Blatt 6'!AF48 -> 0 | AF51: % Summe angebenener Anteile am bestehenden gewerblichen Unternehmen, das der Kooperationspartner ist
B53: Gesamtsumme (= Summe 1 und Summe 2) | S53: =S33+S51 -> 0 | W53: =W33+W51 -> 0 | AA53: =AA33+AA51 -> 0 | AD53: =IF(AND(AD51>0,AD51<100),"Fehler!","") ->  | AE53: =IF(AND(AE51>0,AE51<100),"Fehler!","") -> 
A55: Der relative Anteil (Prozent) der Summe 1 an der vorgenannten Gesamtsumme beträgt: | W55: =IF(AA55>25%,"LUF > 25%","LUF < 25%") -> LUF > 25% | AA55: =IF(AA53>0,SUM(AA33/AA53),"") -> 
A57: Hinweise:
A58: · | B58: Bei Gesellschaften (auch in Kooperationen) ist die Anlage für jeden Gesellschafter einzeln erforderlich. Auch für Gesellschafter deren Kapitalanteil kleiner als 5% ist, ist die Anlage erforderlich.
A59: · | B59: Bei Kooperationen sind alle Umsatzerlösen der beteiligten Kooperationspartner zu ermitteln.
A60: · | B60: Maßgeblich sind die im Durchschnitt der Berichtsjahre erzielten Umsatzerlöse. Es sind immer die kompletten Umsatzerlöse aus den Buchabschlüssen zu erfassen.
A62: · | B62: Als Anlagen sind die der Berechnung zugrundeliegenden Jahresabschlüsse und die entsprechenden Gesellschaftsverträge/Kooperationsvereinbarungen vorzulegen.
A65: Mir / uns ist bekannt, dass das ausgefüllte Formblatt als Nachweis zur Erfüllung der Zuwendungsberechtigung beim Direktor der Landwirtschaftskammer NRW als Landesbeauftragter - EU-Zahlstelle - vorgelegt wird.
B71: ='Blatt 1'!B72 -> 0
B72: Ort, Datum | R72: Name Buchstelle, Stempel, Unterschrift Bearbeiter / -in

Sheet Tabelle2 (hidden)
A1: Kooperation GbR + GbR Personenidentität LW + GW
A2: a | B2: Gesellschafter | D2: Gesellschafter | F2: Kooperation | I2: Personenidentität
A3: b | B3: Gesellschafter | D3: Gesellschafter | F3: Kooperation | I3: Personenidentität
E4: LW | G4: 50 | H4: % | I4: GW | K4: 50 | L4: %
B5: a | C5: b | E5: a | G5: b | I5: a | K5: b
E6: 80 | F6: % | G6: 20 | H6: % | I6: 60 | J6: % | K6: 40 | L6: %
B7: Betrag gesamt | E7: =E6*$G$4/100 -> 40 | F7: % | G7: =G6*$G$4/100 -> 10 | H7: % | I7: =I6*$K$4/100 -> 30 | J7: % | K7: =K6*$K$4/100 -> 20 | L7: %
A8: LuF | B8: 100000 | E8: =$B$8*E7/100 -> 40000 | G8: =$B$8*G7/100 -> 10000 | I8: =E8 -> 40000 | K8: =G8 -> 10000 | M8: immer 100% bei LW entsprechend richtigen Beteiligungsanteilen
A10: Gewerbe in LuF | B10: 10000 | E10: =$B$10*E7/100 -> 4000 | G10: =$B$10*G7/100 -> 1000 | I10: =E10 -> 4000 | K10: =G10 -> 1000 | M10: immer 100% bei LW entsprechend richtigen Beteiligungsanteilen
A12: Bestand Gewerbe Koop. | B12: 25000 | E12: 0 | G12: 0 | I12: =B12*I7/100*2 -> 15000 | K12: =B12*K7/100*2 -> 10000 | M12: immer 100% bei GW entsprechend richtigen Beteiligungsanteilen
A14: weiteres Gewerbe | B14: 30000 | C14: 4000 | E14: 0 | G14: 0 | I14: =B14*B15/100 -> 15000 | K14: =C14*C15/100 -> 1000 | M14: pro Person mit zusätzlichen Feld Anteil Beteiligung
A15: Anteil Beteiligung in % | B15: 50 | C15: 25
A17: selbstständige Arbeit | B17: 1500 | C17: 2000 | E17: =B17 -> 1500 | G17: =C17 -> 2000 | I17: 0 | K17: 0 | M17: pro Person 100%
A19: Kooperation GbR + Einzelunternehmen Personenidentität LW
A20: a | B20: Gesellschafter | D20: Einzelunternehmer | F20: Kooperation | I20: Personenidentität
A21: b | B21: Gesellschafter | F21: Kooperation | I21: keine Personenidentität
E22: LW | G22: 50 | H22: % | I22: GW | K22: 50 | L22: %
B23: a | C23: b | E23: a | G23: b | I23: a
E24: 80 | F24: % | G24: 20 | H24: % | I24: 100 | J24: % | L24: %
B25: Betrag gesamt | E25: =E24*$G$4/100 -> 40 | F25: % | G25: =G24*$G$4/100 -> 10 | H25: % | I25: =I24*$K$4/100 -> 50 | J25: % | L25: %
A26: LuF | B26: 100000 | E26: =$B$8*E25/100 -> 40000 | G26: =$B$8*G25/100*2 -> 20000 | I26: =E26 -> 40000 | M26: immer 100% bei LW entsprechend richtigen Beteiligungsanteilen
A28: Gewerbe in LuF | B28: 10000 | E28: =$B$10*E25/100 -> 4000 | G28: =$B$10*G25/100*2 -> 2000 | I28: =E28 -> 4000 | M28: immer 100% bei LW entsprechend richtigen Beteiligungsanteilen
A30: Bestand Gewerbe Koop. | B30: 25000 | E30: 0 | G30: 0 | I30: =B30*I25/100*2 -> 25000 | M30: immer 100% bei GW entsprechend richtigen Beteiligungsanteilen
A32: weiteres Gewerbe | B32: 30000 | C32: 4000 | E32: 0 | G32: =C32*C33/100 -> 1000 | I32: =B32*B33/100 -> 15000 | M32: pro Person mit zusätzlichen Feld Anteil Beteiligung
A33: Anteil Beteiligung in % | B33: 50 | C33: 25
A35: selbstständige Arbeit | B35: 1500 | C35: 2000 | E35: =B35 -> 1500 | G35: =C35 -> 2000 | I35: 0 | M35: pro Person 100%
A37: Kooperation Einzelunternehmen + GbR Personenidentität LW
A38: a | B38: Einzelunternehmer | D38: Gesellschafter | G38: Kooperation | I38: Personenidentität
A39: b | D39: Gesellschafter | G39: Kooperation | I39: keine Personenidentität
E40: LW | G40: 50 | H40: % | I40: GW | K40: 50 | L40: %
B41: a | C41: b | E41: a | I41: a | K41: b
E42: 100 | F42: % | I42: 60 | J42: % | K42: 40 | L42: %
B43: Betrag gesamt | E43: =E42*$G$4/100 -> 50 | F43: % | I43: =I42*$K$4/100 -> 30 | J43: % | K43: =K42*$K$4/100 -> 20 | L43: %
A44: LuF | B44: 100000 | E44: =$B$8*E43/100 -> 50000 | I44: =E44 -> 50000 | K44: =G44 -> 0 | M44: immer 100% bei LW entsprechend richtigen Beteiligungsanteilen
A46: Gewerbe in LuF | B46: 10000 | E46: =$B$10*E43/100 -> 5000 | I46: =E46 -> 5000 | K46: =G46 -> 0 | M46: immer 100% bei LW entsprechend richtigen Beteiligungsanteilen
A48: Bestand Gewerbe Koop. | B48: 25000 | E48: 0 | I48: =B48*I43/100*2 -> 15000 | K48: =B48*K43/100*2 -> 10000 | M48: immer 100% bei GW entsprechend richtigen Beteiligungsanteilen
A50: weiteres Gewerbe | B50: 30000 | C50: 4000 | E50: 0 | I50: =B50*B51/100 -> 15000 | K50: =C50*C51/100 -> 1000 | M50: pro Person mit zusätzlichen Feld Anteil Beteiligung
A51: Anteil Beteiligung in % | B51: 50 | C51: 25
A53: selbstständige Arbeit | B53: 1500 | C53: 2000 | E53: =B53 -> 1500 | I53: 0 | K53: =C53 -> 2000 | M53: pro Person 100%
A56: Kooperation Einzelunternehmen + GbR keine Personenidentität
A57: a | B57: Einzelunternehmer | G57: Kooperation | I57: keine Personenidentität
A58: b | B58: - | D58: Gesellschafter | G58: Kooperation | I58: keine Personenidentität
A59: c | B59: - | D59: Gesellschafter | G59: Kooperation | I59: keine Personenidentität
E61: LW | G61: 50 | H61: % | I61: GW | K61: 50 | L61: %
B62: a | C62: b | D62: c | E62: a | I62: b | K62: c
E63: 100 | F63: % | I63: 80 | J63: % | K63: 20 | L63: %
B64: Betrag gesamt | E64: =E63*$G$4/100 -> 50 | F64: % | I64: =I63*$K$4/100 -> 40 | J64: % | K64: =K63*$K$4/100 -> 10 | L64: %
A65: LuF | B65: 100000 | E65: =$B$8*E64/100*2 -> 100000 | I65: 0 | K65: 0 | M65: immer 100% bei LW entsprechend richtigen Beteiligungsanteilen
A67: Gewerbe in LuF | B67: 10000 | E67: =$B$10*E64/100*2 -> 10000 | I67: =G67 -> 0 | K67: 0 | M67: immer 100% bei LW entsprechend richtigen Beteiligungsanteilen
A69: Bestand Gewerbe Koop. | C69: 25000 | E69: 0 | I69: =C69*I64/100*2 -> 20000 | K69: =C69*K64/100*2 -> 5000 | M69: immer 100% bei GW entsprechend richtigen Beteiligungsanteilen
A71: weiteres Gewerbe | B71: 30000 | C71: 4000 | D71: 1200 | E71: 0 | I71: =C71*C72/100 -> 1000 | K71: =D71*100/100 -> 1200 | M71: pro Person mit zusätzlichen Feld Anteil Beteiligung
A72: Anteil Beteiligung in % | B72: 50 | C72: 25 | D72: 100
A74: selbstständige Arbeit | B74: 1500 | C74: 2000 | D74: 1400 | E74: =B74 -> 1500 | I74: =C74 -> 2000 | K74: =D74 -> 1400 | M74: pro Person 100%
A78: LW Gesellschaft
A79: a | B79: Gesellschafter | D79: - | G79: keine Kooperation | I79: keine Personenidentität
A80: b | B80: Gesellschafter | D80: - | G80: keine Kooperation | I80: keine Personenidentität
E81: LW | G81: 100 | H81: % | I81: GW | K81: 0 | L81: %
B82: a | C82: b | E82: a | G82: b | I82: a | K82: b
E83: 80 | F83: % | G83: 20 | H83: % | J83: % | L83: %
B84: Betrag gesamt | E84: =E83*$G$81/100 -> 80 | F84: % | G84: =G83*$G$81/100 -> 20 | H84: % | I84: =I83*$K$4/100 -> 0 | J84: % | K84: =K83*$K$4/100 -> 0 | L84: %
A85: LuF | B85: 100000 | E85: =$B$8*E84/100 -> 80000 | G85: =$B$85*G84/100 -> 20000 | I85: 0 | K85: 0 | M85: immer 100% bei LW entsprechend richtigen Beteiligungsanteilen
A87: Gewerbe in LuF | B87: 10000 | E87: =$B$87*E84/100 -> 8000 | G87: =$B$87*G84/100 -> 2000 | I87: 0 | K87: 0 | M87: immer 100% bei LW entsprechend richtigen Beteiligungsanteilen
A89: Bestand Gewerbe Koop. | E89: 0 | G89: 0 | I89: =B89*I84/100*2 -> 0 | K89: =B89*K84/100*2 -> 0 | M89: immer 100% bei GW entsprechend richtigen Beteiligungsanteilen
A91: weiteres Gewerbe | B91: 30000 | C91: 4000 | E91: =B91*B92/100 -> 15000 | G91: =C91*C92/100 -> 1000 | M91: pro Person mit zusätzlichen Feld Anteil Beteiligung
A92: Anteil Beteiligung in % | B92: 50 | C92: 25
A94: selbstständige Arbeit | B94: 1500 | C94: 2000 | E94: =B94 -> 1500 | G94: =C94 -> 2000 | I94: 0 | K94: 0 | M94: pro Person 100%
A97: LW Einzelunternehmen
A98: a | B98: Gesellschafter | D98: - | G98: keine Kooperation | I98: keine Personenidentität
A99: b | B99: Gesellschafter | D99: - | G99: keine Kooperation | I99: keine Personenidentität
E100: LW | G100: 100 | H100: % | I100: GW | K100: 0 | L100: %
B101: a | E101: a | I101: a | K101: b
E102: 100 | F102: % | H102: % | J102: % | L102: %
B103: Betrag gesamt | E103: =E102*$G$81/100 -> 100 | F103: % | G103: =G102*$G$81/100 -> 0 | H103: % | I103: =I102*$K$4/100 -> 0 | J103: % | K103: =K102*$K$4/100 -> 0 | L103: %
A104: LuF | B104: 100000 | E104: =$B$8*E103/100 -> 100000 | G104: =$B$85*G103/100 -> 0 | I104: 0 | K104: 0 | M104: immer 100% bei LW entsprechend richtigen Beteiligungsanteilen
A106: Gewerbe in LuF | B106: 10000 | E106: =$B$87*E103/100 -> 10000 | G106: =$B$87*G103/100 -> 0 | I106: 0 | K106: 0 | M106: immer 100% bei LW entsprechend richtigen Beteiligungsanteilen
A108: Bestand Gewerbe Koop. | E108: 0 | G108: 0 | I108: =B108*I103/100*2 -> 0 | K108: =B108*K103/100*2 -> 0 | M108: immer 100% bei GW entsprechend richtigen Beteiligungsanteilen
A110: weiteres Gewerbe | B110: 30000 | E110: =B110*B111/100 -> 15000 | G110: =C110*C111/100 -> 0 | M110: pro Person mit zusätzlichen Feld Anteil Beteiligung
A111: Anteil Beteiligung in % | B111: 50
A113: selbstständige Arbeit | B113: 1500 | E113: =B113 -> 1500 | G113: =C113 -> 0 | I113: 0 | K113: 0 | M113: pro Person 100%
